bitfinex/quotes_BTCUSD_20250110
["timestamp","ask_amount","ask_price","bid_price","bid_amount"]
[1736498642798,0.023,94660.0,94651.0,0.211302]
[1736498642998,0.023,94660.0,94651.0,0.212302]
[1736498643199,0.005,94661.0,94651.0,0.212302]
[1736498643845,0.023,94660.0,94651.0,0.20330198]
[1736498644039,0.03,94661.0,94651.0,0.20330198]
[1736498644244,0.023,94660.0,94651.0,0.20330198]
[1736498644492,0.023,94660.0,94651.0,0.20230198]
[1736498644865,0.001,94652.0,94651.0,0.20230198]
[1736498645245,0.001,94652.0,94651.0,0.20330198]
[1736498645654,0.023,94661.0,94651.0,0.20230198]
[1736498646016,0.005,94660.0,94651.0,0.20230198]
[1736498646138,0.002,94660.0,94651.0,0.20230198]
[1736498646339,0.002,94660.0,94653.0,0.23791322]
[1736498646822,0.023,94664.0,94653.0,0.23791322]
[1736498646988,0.023,94660.0,94654.0,0.23791322]
[1736498647806,0.023,94660.0,94653.0,0.23791322]
[1736498648012,0.025,94660.0,94653.0,0.23791322]
[1736498648194,0.03,94660.0,94653.0,0.23791322]
[1736498648796,0.03,94660.0,94653.0,0.2289132]
[1736498649093,0.025,94660.0,94653.0,0.2289132]
[1736498649327,0.028,94660.0,94653.0,0.2289132]
[1736498649669,0.03,94660.0,94651.0,0.20230198]
[1736498650283,0.028,94660.0,94651.0,0.20230198]
[1736498650502,0.03,94660.0,94651.0,0.20230198]
[1736498650704,0.025,94660.0,94651.0,0.20230198]
[1736498651170,0.028,94660.0,94651.0,0.20230198]
[1736498651413,0.03,94660.0,94651.0,0.20230198]
[1736498651733,0.0779,94664.0,94651.0,0.20230198]
[1736498651993,0.3274,94676.0,94665.0,0.0802]
[1736498651994,0.21125,94675.0,94665.0,0.0802]
[1736498652249,0.3274,94676.0,94666.0,0.211269]
[1736498652513,0.3274,94676.0,94665.0,0.0802]
[1736498652782,0.3274,94676.0,94666.0,0.21232525]
[1736498653001,0.290303,94696.0,94666.0,0.211269]
[1736498653205,0.01065113,94689.0,94667.0,0.00105618]
[1736498653414,0.01065113,94689.0,94666.0,0.211269]
[1736498653633,0.211233,94683.0,94666.0,0.211269]
[1736498653815,0.211233,94683.0,94666.0,0.20226898]
[1736498654021,0.211233,94683.0,94666.0,0.20526898]
[1736498654470,0.21124,94679.0,94666.0,0.003]
[1736498654675,0.21124,94679.0,94662.0,0.211277]
[1736498654884,0.21124,94679.0,94666.0,0.002]
[1736498655298,0.21124,94679.0,94667.0,0.211266]
[1736498656479,0.023,94675.0,94667.0,0.211266]
[1736498657775,0.023,94675.0,94667.0,0.001]
[1736498658287,0.234249,94675.0,94667.0,0.001]
[1736498658882,0.234249,94675.0,94666.0,0.211268]
[1736498659446,0.234249,94675.0,94662.0,0.20327498]
[1736498660416,0.234249,94675.0,94666.0,0.211268]
[1736498660594,0.023,94675.0,94666.0,0.211268]
[1736498660805,0.21124,94679.0,94666.0,0.211268]
[1736498661020,0.15,94680.0,94666.0,0.212268]
[1736498662983,0.16085835,94680.0,94666.0,0.212268]
[1736498663723,0.16085835,94680.0,94666.0,0.20326798]
[1736498668252,0.01085835,94680.0,94666.0,0.20326798]
[1736498669066,0.023,94676.0,94666.0,0.20326798]
[1736498669861,0.023,94676.0,94666.0,0.19426796]
[1736498670643,0.01085835,94680.0,94666.0,0.19426796]
[1736498670845,0.211237,94681.0,94667.0,0.0791]
[1736498672211,0.211237,94681.0,94667.0,0.0801]
[1736498673841,0.211237,94681.0,94667.0,0.07109998]
[1736498675556,0.023,94676.0,94667.0,0.07109998]
[1736498678321,0.211237,94681.0,94667.0,0.07109998]
[1736498678736,0.211237,94681.0,94667.0,0.06209996]
[1736498679091,0.211237,94681.0,94667.0,0.001]
[1736498679296,0.023,94676.0,94667.0,0.001]
[1736498681360,0.211237,94681.0,94667.0,0.001]
[1736498683957,0.211237,94681.0,94666.0,0.18526794]
[1736498685538,0.211237,94681.0,94666.0,0.18626794]
[1736498687507,0.211231,94683.0,94666.0,0.18626794]
[1736498687689,0.259611,94692.0,94667.0,0.05025627]
[1736498687690,0.0001706,94690.0,94667.0,0.05025627]
[1736498688406,0.15,94688.0,94667.0,0.05025627]
[1736498688904,0.00105631,94687.0,94667.0,0.04125625]
[1736498689147,0.00106704,94668.0,94667.0,0.04725625]
[1736498689735,0.00106704,94668.0,94667.0,0.04925625]
[1736498690965,0.00106704,94668.0,94667.0,0.0600072]
[1736498691119,0.00106704,94668.0,94667.0,0.04925625]
[1736498691622,0.00106704,94668.0,94667.0,0.008]
[1736498692043,0.00106704,94668.0,94667.0,0.24558461]
[1736498692668,0.00106704,94668.0,94667.0,0.008]
[1736498693737,0.00106704,94668.0,94666.0,0.18426792]
[1736498695157,0.00106704,94668.0,94666.0,0.18626792]
[1736498695527,6.704e-05,94668.0,94666.0,0.18626792]
[1736498695742,0.00106704,94668.0,94666.0,0.19226792]
[1736498698805,0.00106704,94668.0,94666.0,0.1832679]
[1736498701966,0.00106704,94668.0,94666.0,0.008]
[1736498702282,0.0465323,94667.0,94666.0,0.008]
[1736498702495,0.023,94667.0,94666.0,0.008]
[1736498703000,0.023,94666.0,94661.0,0.211279]
[1736498703210,6.704e-05,94668.0,94666.0,0.211269]
[1736498703390,0.001,94667.0,94666.0,0.211269]
[1736498703596,0.001,94667.0,94666.0,0.286669]
[1736498703835,0.001,94667.0,94666.0,0.27766898]
[1736498704042,0.002,94667.0,94666.0,0.27766898]
[1736498704442,0.002,94667.0,94666.0,0.20226898]
[1736498705575,6.704e-05,94668.0,94666.0,0.4400033]
[1736498705994,6.704e-05,94668.0,94667.0,0.05095621]
[1736498706165,6.704e-05,94668.0,94667.0,0.12795621]
[1736498707688,6.704e-05,94668.0,94667.0,0.13095621]
[1736498708709,6.704e-05,94668.0,94667.0,0.12295619]
[1736498709849,6.704e-05,94668.0,94667.0,0.12281192]
[1736498713219,6.704e-05,94668.0,94667.0,0.004]
[1736498713817,6.704e-05,94668.0,94666.0,0.19726896]
[1736498716427,6.704e-05,94668.0,94667.0,0.23776271]
[1736498716606,6.704e-05,94668.0,94667.0,0.23876271]
[1736498716860,6.704e-05,94668.0,94667.0,0.23776271]
[1736498717852,0.04902482,94668.0,94667.0,0.23776271]
[1736498718083,0.44678858,94668.0,94667.0,0.23776271]
[1736498718309,0.59546819,94668.0,94667.0,0.23776271]
[1736498718702,0.59546819,94668.0,94662.0,0.22876269]
[1736498718703,0.234275,94663.0,94662.0,0.22876269]
[1736498719221,0.234275,94663.0,94649.0,0.211306]
[1736498719222,0.023,94662.0,94649.0,0.211306]
[1736498719427,0.02432053,94662.0,94649.0,0.211306]
[1736498720625,0.023,94662.0,94653.0,0.211297]
[1736498720830,0.02432053,94662.0,94653.0,0.211297]
[1736498721238,0.027,94662.0,94653.0,0.211297]
[1736498721626,0.023,94662.0,94653.0,0.211297]
[1736498722045,0.02832053,94662.0,94653.0,0.211297]
[1736498722253,0.10806366,94662.0,94653.0,0.211297]
[1736498722743,0.02932053,94662.0,94653.0,0.211297]
[1736498723117,0.028,94662.0,94653.0,0.211297]
[1736498724560,0.028,94662.0,94657.0,0.211287]
[1736498725477,0.027,94662.0,94657.0,0.211287]
[1736498725981,0.028,94662.0,94657.0,0.211287]
[1736498726193,0.028,94662.0,94653.0,0.211297]
[1736498726574,0.07049058,94661.0,94653.0,0.211297]
[1736498726777,0.023,94659.0,94649.0,0.23756786]
[1736498726976,0.211291,94656.0,94648.0,0.23756786]
[1736498727178,0.023,94657.0,94648.0,0.23756786]
[1736498727386,0.023,94657.0,94644.0,0.2212335]
[1736498727387,0.023,94655.0,94646.0,0.23756786]
[1736498727721,0.023,94653.0,94646.0,0.23756786]
[1736498727854,0.023,94651.0,94641.0,0.23756786]
[1736498728056,0.0525767,94656.0,94641.0,0.23756786]
[1736498728057,0.211316,94645.0,94641.0,0.23756786]
[1736498728263,0.023,94642.0,94640.0,8.53e-05]
[1736498728466,0.36244484,94641.0,94640.0,8.53e-05]
[1736498728661,0.46542376,94641.0,94640.0,8.53e-05]
[1736498728862,0.61542376,94641.0,94640.0,8.53e-05]
[1736498729128,0.71972352,94641.0,94640.0,8.53e-05]
[1736498729747,0.211336,94636.0,94631.0,0.22925044]
[1736498729949,0.211336,94636.0,94578.0,1.64812]
[1736498729950,0.21134,94634.0,94615.0,0.211381]
[1736498730095,0.211345,94632.0,94610.0,0.28341029]
[1736498730314,0.13731732,94631.0,94612.0,0.2114723]
[1736498730506,0.03301756,94631.0,94630.0,0.0026222]
[1736498730784,0.03301756,94631.0,94620.0,0.21137]
[1736498730991,0.03169657,94631.0,94620.0,0.21137]
[1736498731192,8.247e-05,94631.0,94620.0,0.21137]
[1736498731316,8.247e-05,94631.0,94630.0,0.0027134]
[1736498731521,0.00108247,94631.0,94630.0,0.0027134]
[1736498732361,8.247e-05,94631.0,94630.0,0.0027134]
[1736498732699,0.00108247,94631.0,94630.0,0.0027134]
[1736498733752,0.00108247,94631.0,94630.0,0.0783134]
[1736498734397,0.00108247,94631.0,94630.0,0.07884253]
[1736498734816,0.00108247,94631.0,94630.0,0.08640253]
[1736498735027,8.247e-05,94631.0,94630.0,0.08840253]
[1736498735244,0.00108247,94631.0,94630.0,0.09889702]
[1736498735670,8.247e-05,94631.0,94630.0,0.09689702]
[1736498735876,8.247e-05,94631.0,94630.0,0.09889702]
[1736498736077,0.00108247,94631.0,94630.0,0.09889702]
[1736498736694,0.00108247,94631.0,94630.0,0.20319678]
[1736498736898,0.00108247,94631.0,94630.0,0.20266765]
[1736498737229,8.247e-05,94631.0,94630.0,0.22366765]
[1736498737431,8.247e-05,94631.0,94630.0,0.32666765]
[1736498737626,0.00108247,94631.0,94630.0,0.32666765]
[1736498738416,0.00108247,94631.0,94630.0,0.30366765]
[1736498740749,0.00108247,94631.0,94630.0,0.63066765]
[1736498748232,0.00108247,94631.0,94630.0,0.91407794]
[1736498748441,4.7e-07,94631.0,94630.0,1.16407794]
[1736498748667,4.7e-07,94631.0,94630.0,1.24221495]
[1736498748846,4.7e-07,94631.0,94630.0,0.95880466]
[1736498749049,4.7e-07,94631.0,94630.0,0.85880466]
[1736498749276,4.7e-07,94631.0,94630.0,0.95880466]
[1736498750442,0.0001706,94669.0,94668.0,0.211264]
[1736498750853,0.0001706,94669.0,94668.0,0.21391144]
[1736498752249,0.0001706,94669.0,94668.0,0.21491144]
[1736498753481,0.0001706,94669.0,94668.0,0.3960112]
[1736498753635,0.0001706,94669.0,94668.0,0.4442112]
[1736498753837,0.0001706,94669.0,94668.0,0.45460298]
[1736498754439,0.0001706,94669.0,94668.0,0.45360298]
[1736498754895,0.0001706,94669.0,94668.0,0.45460298]
[1736498755055,0.0001706,94669.0,94668.0,0.45560298]
[1736498755469,0.0001706,94669.0,94668.0,0.55560298]
[1736498755706,0.0001706,94669.0,94668.0,0.55460298]
[1736498756034,0.0001706,94669.0,94668.0,0.79161529]
[1736498756611,0.0001706,94669.0,94668.0,0.55460298]
[1736498757211,0.0001706,94669.0,94668.0,0.55560298]
[1736498757632,0.0001706,94669.0,94668.0,0.55460298]
[1736498757841,0.0001706,94669.0,94668.0,0.88160298]
[1736498758040,6e-07,94669.0,94668.0,1.03160298]
[1736498758237,6e-07,94669.0,94668.0,1.13060298]
[1736498758842,6e-07,94669.0,94668.0,1.14260298]
[1736498760283,6e-07,94669.0,94668.0,1.13860298]
[1736498760746,6e-07,94669.0,94668.0,1.14260298]
[1736498761755,0.0001706,94693.0,94680.0,0.1031057]
[1736498761967,0.00031721,94690.0,94689.0,0.211217]
[1736498762424,0.00031721,94690.0,94689.0,0.3180421]
[1736498762919,0.0001706,94693.0,94689.0,0.3180421]
[1736498763067,0.0001706,94693.0,94690.0,0.31551476]
[1736498763264,0.0001706,94693.0,94690.0,0.52672976]
[1736498763493,0.0001706,94693.0,94692.0,0.211211]
[1736498763786,0.0001706,94693.0,94692.0,0.31551076]
[1736498763967,0.0001706,94693.0,94692.0,0.31803297]
[1736498765103,0.0001706,94693.0,94692.0,0.34181817]
[1736498765322,0.0001706,94693.0,94692.0,0.33881817]
[1736498766094,0.0001706,94693.0,94692.0,0.34781817]
[1736498767120,0.0001706,94693.0,94692.0,0.35937817]
[1736498770647,0.0001706,94693.0,94692.0,0.35537817]
[1736498771053,0.0001706,94693.0,94692.0,0.35937817]
[1736498771383,0.0001706,94693.0,94692.0,0.35037817]
[1736498771791,0.0011706,94693.0,94692.0,0.35937817]
[1736498776435,0.0011706,94693.0,94692.0,0.24751841]
[1736498776641,0.0011706,94693.0,94692.0,0.22673321]
[1736498777665,0.0011706,94693.0,94692.0,0.22273321]
[1736498777883,0.0001706,94693.0,94692.0,0.21573321]
[1736498778108,0.0001706,94693.0,94692.0,0.32503297]
[1736498778314,0.0001706,94693.0,94692.0,0.40073297]
[1736498779805,0.0001706,94693.0,94692.0,0.32503297]
[1736498780780,0.0001706,94693.0,94692.0,0.22073321]
[1736498781409,0.0820706,94693.0,94692.0,0.22073321]
[1736498781769,0.0820706,94693.0,94692.0,0.22829321]
[1736498782371,0.0820706,94693.0,94692.0,0.21573321]
[1736498782581,0.0820706,94693.0,94692.0,0.00452221]
[1736498782801,0.0820706,94693.0,94692.0,0.00752221]
[1736498783040,0.32757546,94693.0,94692.0,0.00752221]
[1736498783221,0.0819,94691.0,94680.0,0.24377319]
[1736498783424,0.10561999,94690.0,94681.0,0.211235]
[1736498783631,0.10561999,94690.0,94681.0,0.21368531]
[1736498783835,0.10561999,94690.0,94681.0,0.20468529]
[1736498784245,0.0825,94689.0,94681.0,0.20468529]
[1736498784421,0.00132022,94688.0,94681.0,0.20468529]
[1736498785433,0.0825,94689.0,94681.0,0.41592029]
[1736498785629,0.0825,94689.0,94681.0,0.41692029]
[1736498785884,0.0825,94689.0,94681.0,0.41592029]
[1736498786088,0.00132021,94688.0,94681.0,0.20468529]
[1736498786293,0.00632021,94688.0,94681.0,0.00245031]
[1736498786620,0.06243089,94688.0,94681.0,0.00245031]
[1736498787730,0.05943089,94688.0,94681.0,0.00245031]
[1736498788740,0.06443089,94688.0,94681.0,0.00245031]
[1736498789495,0.00832021,94688.0,94681.0,0.00245031]
[1736498789709,0.00832021,94688.0,94678.0,0.2048379]
[1736498789909,0.00846668,94688.0,94678.0,0.2048379]
[1736498790616,0.00646668,94688.0,94678.0,0.2048379]
[1736498791163,0.00346668,94688.0,94678.0,0.2048379]
[1736498791350,0.00846668,94688.0,94678.0,0.2048379]
[1736498791560,0.0769,94687.0,94678.0,0.2048379]
[1736498791788,0.0013202,94686.0,94678.0,0.2048379]
[1736498792425,0.211229,94684.0,94664.0,0.211272]
[1736498792569,0.0828,94682.0,94664.0,0.211272]
[1736498792783,0.0828,94675.0,94664.0,0.211272]
[1736498792983,0.1056202,94674.0,94664.0,0.211272]
[1736498793659,0.1056202,94674.0,94664.0,0.422545]
[1736498793820,0.0828,94675.0,94655.0,0.02042979]
[1736498794009,0.0828,94675.0,94670.0,0.211258]
[1736498794397,0.10562008,94674.0,94664.0,0.211271]
[1736498795202,0.211253,94673.0,94670.0,0.001]
[1736498795543,0.04128774,94672.0,94661.0,0.211278]
[1736498795704,0.00132043,94672.0,94662.0,0.211278]
[1736498796319,0.00132043,94671.0,94662.0,0.211278]
[1736498796569,0.00132043,94673.0,94662.0,0.211278]
[1736498797192,0.001,94672.0,94662.0,0.211278]
[1736498797377,0.04138712,94671.0,94656.0,0.0098416]
[1736498797595,0.10429976,94670.0,94661.0,0.211279]
[1736498797769,0.0013205,94669.0,94661.0,0.211279]
[1736498797953,0.0013205,94669.0,94662.0,0.211278]
[1736498798892,0.0013205,94669.0,94662.0,0.20227798]
[1736498800866,0.0023205,94669.0,94662.0,0.20227798]
[1736498801610,0.0013205,94669.0,94662.0,0.20227798]
[1736498801845,0.0013205,94669.0,94662.0,0.41355598]
[1736498802020,0.0043205,94669.0,94662.0,0.41355598]
[1736498802203,0.0013205,94669.0,94662.0,0.41355598]
[1736498802581,0.211264,94668.0,94658.0,0.211286]
[1736498802788,0.05683442,94667.0,94658.0,0.211286]
[1736498802989,0.0494,94665.0,94653.0,0.211297]
[1736498803192,0.10562035,94664.0,94657.0,0.211288]
[1736498804274,0.10562035,94664.0,94657.0,0.422576]
[1736498804478,0.10562035,94664.0,94661.0,0.211278]
[1736498804682,0.10429976,94664.0,94661.0,0.211278]
[1736498804921,0.10529976,94664.0,94661.0,0.211278]
[1736498805124,0.10429976,94664.0,94661.0,0.211278]
[1736498805541,0.00332054,94664.0,94661.0,0.422557]
[1736498805745,0.00132054,94664.0,94661.0,0.422557]
[1736498805945,0.00232054,94664.0,94661.0,0.422557]
[1736498806147,0.00232054,94664.0,94661.0,0.211278]
[1736498806555,0.00132054,94664.0,94661.0,0.211278]
[1736498806752,0.00232054,94664.0,94661.0,0.211278]
[1736498807425,0.00432054,94664.0,94661.0,0.211278]
[1736498807559,0.00232054,94664.0,94661.0,0.211278]
[1736498807973,0.00432054,94664.0,94661.0,0.211278]
[1736498808227,0.00432054,94664.0,94661.0,0.21128]
[1736498808806,0.00432054,94664.0,94661.0,0.20227998]
[1736498809163,0.00432054,94664.0,94662.0,0.01]
[1736498810079,0.00332054,94664.0,94662.0,0.01]
[1736498810212,0.00332054,94664.0,94663.0,0.211275]
[1736498810421,0.001,94664.0,94663.0,0.211275]
[1736498811333,0.003,94664.0,94663.0,0.211275]
[1736498811558,0.001,94664.0,94663.0,0.211275]
[1736498811960,0.003,94664.0,94663.0,0.211275]
[1736498812299,0.002,94664.0,94663.0,0.211275]
[1736498812506,0.003,94664.0,94663.0,0.211275]
[1736498813727,0.003,94664.0,94663.0,0.20227498]
[1736498818707,0.003,94664.0,94663.0,0.19327496]
[1736498818955,0.002,94664.0,94663.0,0.19327496]
[1736498819357,0.002,94664.0,94663.0,0.19427496]
[1736498819690,0.00132025,94684.0,94663.0,0.001]
[1736498819806,0.00132025,94684.0,94678.0,0.21124]
[1736498821089,0.00122025,94684.0,94678.0,0.21124]
[1736498821859,0.00522025,94684.0,94678.0,0.21124]
[1736498822434,0.00722025,94684.0,94678.0,0.21124]
[1736498823817,0.00722025,94684.0,94678.0,0.20223998]
[1736498824610,0.00722025,94684.0,94678.0,0.41348098]
[1736498825486,0.00722025,94684.0,94678.0,0.20223998]
[1736498826430,0.00722025,94684.0,94671.0,0.1311]
[1736498826692,0.006,94684.0,94682.0,0.211233]
[1736498827838,0.002,94684.0,94682.0,0.211233]
[1736498828369,0.00014647,94688.0,94682.0,0.211233]
[1736498828989,0.002,94684.0,94680.0,0.211235]
[1736498829343,0.00146665,94688.0,94680.0,0.211235]
[1736498829541,0.03941587,94688.0,94680.0,0.211235]
[1736498829771,0.04241587,94688.0,94680.0,0.211235]
[1736498830127,0.00314647,94688.0,94683.0,0.211228]
[1736498830290,0.00214647,94688.0,94683.0,0.211228]
[1736498830461,0.00214647,94688.0,94686.0,0.211222]
[1736498830707,0.00214647,94688.0,94686.0,0.290222]
[1736498830922,0.00014647,94688.0,94687.0,0.0476]
[1736498831578,0.00114647,94688.0,94687.0,0.0476]
[1736498832166,0.00114647,94688.0,94687.0,0.28406965]
[1736498832689,0.00014647,94688.0,94687.0,0.28706965]
[1736498832888,0.00014647,94688.0,94687.0,0.0516]
[1736498833289,0.00014647,94688.0,94687.0,0.12992739]
[1736498833446,0.00014647,94688.0,94687.0,0.23422676]
[1736498833655,0.00014647,94688.0,94687.0,0.23359976]
[1736498834506,0.00014647,94688.0,94687.0,0.39113749]
[1736498834763,0.00114647,94688.0,94687.0,0.39913749]
[1736498835729,0.00114647,94688.0,94687.0,0.40313749]
[1736498835977,0.00114647,94688.0,94687.0,0.68683936]
[1736498837374,0.00114647,94688.0,94687.0,0.40313749]
[1736498841075,0.00114647,94688.0,94687.0,0.63919747]
[1736498843027,0.00114647,94688.0,94687.0,0.40313749]
[1736498843504,0.00114647,94688.0,94687.0,0.25313749]
[1736498843713,0.00114647,94688.0,94687.0,0.10879773]
[1736498843915,0.00114647,94688.0,94687.0,0.10942504]
[1736498845988,0.00114647,94688.0,94687.0,0.2137248]
[1736498846342,0.00114647,94688.0,94687.0,0.21309749]
[1736498848155,0.00114647,94688.0,94687.0,0.26109749]
[1736498854465,0.00114647,94688.0,94687.0,0.41109749]
[1736498854685,0.00114647,94688.0,94687.0,0.73809749]
[1736498855722,0.00114647,94688.0,94687.0,0.93809749]
[1736498855906,0.00114647,94688.0,94687.0,0.97091386]
[1736498857144,4.7e-07,94688.0,94687.0,0.97091386]
[1736498857361,0.0001706,94707.0,94699.0,0.1]
[1736498857534,0.0001706,94707.0,94705.0,0.334082]
[1736498857535,0.00023249,94706.0,94705.0,0.334082]
[1736498857737,0.00023249,94706.0,94705.0,0.43838176]
[1736498859133,0.00023249,94706.0,94705.0,0.44638176]
[1736498859962,0.00023249,94706.0,94705.0,0.68235214]
[1736498860572,0.00023249,94706.0,94705.0,1.00935214]
[1736498861008,0.00023249,94706.0,94705.0,1.01135214]
[1736498861207,0.00023249,94706.0,94705.0,1.03218881]
[1736498861605,0.00023249,94706.0,94705.0,1.04286956]
[1736498862079,0.00023249,94706.0,94705.0,0.80689918]
[1736498873655,0.00023249,94706.0,94705.0,0.76039918]
[1736498875756,0.00023249,94706.0,94705.0,0.76795918]
[1736498877669,0.00023249,94706.0,94705.0,0.80082648]
[1736498878889,4.9e-07,94706.0,94705.0,1.05082648]
[1736498879076,9e-08,94707.0,94706.0,0.3294]
[1736498879271,9e-07,94707.0,94706.0,0.46656706]
[1736498879682,9e-07,94707.0,94706.0,0.93746706]
[1736498880166,5e-07,94713.0,94712.0,0.643766]
[1736498880377,0.0001706,94722.0,94721.0,0.2]
[1736498880378,0.0001315,94722.0,94721.0,0.2]
[1736498880587,0.0001315,94722.0,94721.0,0.56409295]
[1736498880839,0.00018032,94722.0,94721.0,0.89046706]
[1736498882559,3.2e-07,94722.0,94721.0,0.93896706]
[1736498882744,3.2e-07,94722.0,94721.0,0.95096706]
[1736498884104,3.2e-07,94722.0,94721.0,0.96143623]
[1736498884722,9.2e-07,94723.0,94722.0,0.561144]
[1736498884948,9.2e-07,94723.0,94722.0,0.77501106]
[1736498885994,9.2e-07,94723.0,94722.0,0.77801106]
[1736498886418,9.2e-07,94723.0,94722.0,1.19621558]
[1736498886625,9.2e-07,94723.0,94722.0,1.16334828]
[1736498887049,9.2e-07,94723.0,94722.0,0.74514376]
[1736498887430,9.2e-07,94723.0,94722.0,0.75414376]
[1736498890570,5.2e-07,94726.0,94725.0,0.65]
[1736498890781,5.2e-07,94726.0,94725.0,0.83739976]
[1736498892615,9.2e-07,94731.0,94730.0,0.1]
[1736498892926,0.0001704,94744.0,94743.0,0.613697]
[1736498893067,0.0001704,94744.0,94743.0,0.81799676]
[1736498893268,0.0001704,94744.0,94743.0,1.06799676]
[1736498893486,0.0001704,94744.0,94743.0,1.20376638]
[1736498893685,0.0001704,94744.0,94743.0,1.12816638]
[1736498893932,0.0001704,94744.0,94743.0,0.78339674]
[1736498895514,0.0001704,94744.0,94743.0,0.88339674]
[1736498895966,0.0001704,94744.0,94743.0,0.80444958]
[1736498896171,0.0001704,94744.0,94743.0,0.81244958]
[1736498896601,0.0001704,94744.0,94743.0,0.81544958]
[1736498897010,0.0001704,94744.0,94743.0,1.05099381]
[1736498897365,0.0001704,94744.0,94743.0,0.91172876]
[1736498897570,0.0001704,94744.0,94743.0,0.89819592]
[1736498897771,0.0001704,94744.0,94743.0,0.79389616]
[1736498897951,0.0001704,94744.0,94743.0,0.55835193]
[1736498898766,0.0001704,94744.0,94743.0,0.54935191]
[1736498902376,0.0001704,94744.0,94743.0,0.54135191]
[1736498902579,0.0001704,94744.0,94743.0,0.23135195]
[1736498903003,0.0001704,94744.0,94743.0,0.23035195]
[1736498903373,0.0001704,94744.0,94743.0,0.22935195]
[1736498903789,0.0001704,94744.0,94743.0,0.22435193]
[1736498907669,0.0001704,94744.0,94743.0,0.32865169]
[1736498907883,0.0001704,94744.0,94743.0,0.47865169]
[1736498908466,0.0001704,94744.0,94743.0,0.78765165]
[1736498908684,0.0001704,94744.0,94743.0,0.86485165]
[1736498909867,0.0001704,94744.0,94743.0,0.85585163]
[1736498910059,0.0001704,94761.0,94760.0,0.211059]
[1736498910266,0.00031692,94761.0,94760.0,0.211059]
[1736498911156,0.00231692,94761.0,94760.0,0.211059]
[1736498912573,0.00331692,94761.0,94760.0,0.22143463]
[1736498912976,0.00131692,94761.0,94760.0,0.22143463]
[1736498913340,0.00331692,94761.0,94760.0,0.22143463]
[1736498913583,0.00231692,94761.0,94760.0,0.22143463]
[1736498913757,0.00231692,94761.0,94760.0,0.21643461]
[1736498913913,0.00031692,94761.0,94760.0,0.21643461]
[1736498914257,0.00031692,94761.0,94760.0,0.21743461]
[1736498918799,0.00031692,94761.0,94760.0,0.20843459]
[1736498923862,0.00031692,94761.0,94760.0,0.30373433]
[1736498925105,0.00031692,94761.0,94760.0,0.35093433]
[1736498926871,0.00031692,94761.0,94760.0,0.63413526]
[1736498928297,0.00031692,94761.0,94760.0,1.19313522]
[1736498928443,0.00031692,94761.0,94760.0,1.40091322]
[1736498928642,9.2e-07,94761.0,94760.0,1.40091322]
[1736498928856,9.2e-07,94761.0,94760.0,1.11771229]
[1736498930379,9.2e-07,94761.0,94760.0,1.11671229]
[1736498930589,9.2e-07,94761.0,94760.0,1.11271229]
[1736498930952,9.2e-07,94761.0,94760.0,1.12071229]
[1736498931153,9.2e-07,94761.0,94760.0,1.11271229]
[1736498931921,9.2e-07,94761.0,94760.0,1.12171229]
[1736498932126,3.4e-07,94781.0,94780.0,0.211014]
[1736498932326,0.00048855,94781.0,94780.0,0.54803376]
[1736498933815,0.00048855,94781.0,94780.0,0.53903374]
[1736498936986,0.00048855,94781.0,94780.0,0.77453346]
[1736498937382,0.00048855,94781.0,94780.0,0.77753346]
[1736498937853,0.00048855,94781.0,94780.0,0.72307778]
[1736498938054,0.00048855,94781.0,94780.0,0.48757806]
[1736498938874,0.00048855,94781.0,94780.0,0.47557804]
[1736498939077,0.00048855,94781.0,94780.0,0.47657804]
[1736498939376,0.00048855,94781.0,94780.0,0.72253596]
[1736498939696,0.00048855,94781.0,94780.0,0.72153596]
[1736498939875,0.00048855,94781.0,94780.0,0.72353596]
[1736498940479,0.00048855,94781.0,94780.0,0.73053596]
[1736498941514,0.00048855,94781.0,94780.0,0.49509904]
[1736498941714,0.00048855,94781.0,94780.0,0.48809904]
[1736498942145,0.00048855,94781.0,94780.0,0.49309904]
[1736498942706,0.00048855,94781.0,94780.0,0.49109904]
[1736498942857,0.00048855,94781.0,94780.0,0.49309904]
[1736498943070,0.00048855,94781.0,94780.0,0.48809904]
[1736498943635,0.00048855,94781.0,94780.0,0.48609904]
[1736498943911,0.00048855,94781.0,94780.0,0.47909902]
[1736498944907,0.00048855,94781.0,94780.0,0.48509902]
[1736498945499,0.00048855,94781.0,94780.0,0.47909902]
[1736498945673,0.00048855,94781.0,94780.0,0.48509902]
[1736498947854,0.00048855,94781.0,94780.0,0.56129902]
[1736498948358,0.00048855,94781.0,94780.0,0.79673594]
[1736498948718,0.00048855,94781.0,94780.0,0.78773592]
[1736498949329,0.00048855,94781.0,94780.0,0.552299]
[1736498953434,0.00048855,94781.0,94780.0,0.86129896]
[1736498953868,0.00048855,94781.0,94780.0,0.85229894]
[1736498958218,0.00048855,94781.0,94780.0,0.77609894]
[1736498958803,0.00048855,94781.0,94780.0,0.60256504]
[1736498959072,0.00048855,94781.0,94780.0,0.61008504]
[1736498959700,0.00048855,94781.0,94780.0,0.82109904]
[1736498961820,0.00048855,94781.0,94780.0,0.81109904]
[1736498963311,0.00048855,94781.0,94780.0,0.84395964]
[1736498963939,0.00048855,94781.0,94780.0,0.83495962]
[1736498966576,0.00048855,94781.0,94780.0,0.79457902]
[1736498966817,0.00048855,94781.0,94780.0,0.80209902]
[1736498968646,0.00048855,94781.0,94780.0,0.83497561]
[1736498969073,0.00048855,94781.0,94780.0,1.11775848]
[1736498969785,0.00048855,94781.0,94780.0,0.82597559]
[1736498971237,0.00048855,94781.0,94780.0,0.793099]
[1736498971437,0.00048855,94781.0,94780.0,0.82597676]
[1736498973863,0.00048855,94781.0,94780.0,0.7039768]
[1736498975293,0.00048855,94781.0,94780.0,1.12152338]
[1736498976009,0.00048855,94781.0,94780.0,0.7039768]
[1736498978815,0.00048855,94781.0,94780.0,0.69497678]
[1736498979921,0.00048855,94781.0,94780.0,1.11446026]
[1736498980148,0.00048855,94781.0,94780.0,1.19496026]
[1736498980608,0.00048855,94781.0,94780.0,0.77547678]
[1736498982957,0.00048855,94781.0,94780.0,0.68745678]
[1736498983166,0.00048855,94781.0,94780.0,0.66209902]
[1736498983778,0.00048855,94781.0,94780.0,0.68596565]
[1736498984009,0.00048855,94781.0,94780.0,0.67996565]
[1736498984361,0.00048855,94781.0,94780.0,0.68396565]
[1736498984572,0.00048855,94781.0,94780.0,0.68196565]
[1736498984784,0.00048855,94781.0,94780.0,0.67896565]
[1736498984995,0.00048855,94781.0,94780.0,0.68496565]
[1736498985203,0.00048855,94781.0,94780.0,0.68396565]
[1736498985517,0.00048855,94781.0,94780.0,0.68596565]
[1736498986085,6e-07,94799.0,94786.0,0.1]